bitfinex-derivatives/quotes_SOLF0:USTF0_20250212
["timestamp","ask_amount","ask_price","bid_price","bid_amount"]
[1739371674965,4.31447972,192.39,192.35,5.1984]
[1739371675366,4.31447972,192.39,192.36,5.1982]
[1739371675556,6.36036849,192.4,192.36,5.1982]
[1739371675865,2.59947233,192.38,192.36,5.1982]
[1739371676066,2.59947233,192.38,192.35,5.1985]
[1739371676263,2.59947233,192.38,192.31,3.126]
[1739371676567,9.51768554,192.37,192.31,8.3254]
[1739371676760,4.35416842,192.36,192.31,8.3254]
[1739371677063,11.23145158,192.35,192.31,8.3254]
[1739371677265,11.50362178,192.34,192.31,1.5051]
[1739371677463,11.50362178,192.33,192.24,25.56398025]
[1739371677665,4.31958554,192.32,192.25,1.6505]
[1739371677961,0.03661724,192.3,192.25,1.6505]
[1739371678168,11.67152048,192.29,192.25,1.6505]
[1739371678368,4.48817795,192.28,192.26,5.201]
[1739371678562,0.03661724,192.3,192.26,5.201]
[1739371678563,4.48817795,192.27,192.26,5.201]
[1739371679066,0.03661724,192.3,192.25,1.6505]
[1739371679966,16.06978437,192.29,192.25,1.6505]
[1739371680868,9.70941588,192.28,192.25,1.6505]
[1739371681470,9.70941588,192.28,192.27,30.76468025]
[1739371681663,0.03661724,192.3,192.27,25.56398025]
[1739371681970,6.36036849,192.33,192.27,0.03511481]
[1739371682169,7.15741354,192.32,192.27,0.03511481]
[1739371682371,5.07758587,192.29,192.27,0.03511481]
[1739371682668,2.07982767,192.28,192.27,0.03511481]
[1739371682863,2.07982767,192.28,192.16,1.5053]
[1739371683170,11.42813706,192.25,192.16,1.5053]
[1739371683373,2.07982767,192.24,192.16,1.5053]
[1739371683670,13.47320273,192.24,192.16,1.5053]
[1739371683869,39.03718298,192.24,192.11,1.544]
[1739371684070,25.56398025,192.21,192.07,1.5928]
[1739371684572,5.07664222,192.16,192.1,5.2052]
[1739371684872,5.11006268,192.16,192.08,25.56398025]
[1739371685371,2.78e-06,192.11,192.08,25.56398025]
[1739371685670,5.07664222,192.19,192.08,25.56398025]
[1739371685870,2.08156638,192.18,192.12,25.56398025]
[1739371686072,5.07664222,192.21,192.07,1.5928]
[1739371686269,0.03371117,192.15,192.09,25.56398025]
[1739371686570,0.0363419,192.14,192.09,12.55562904]
[1739371686772,0.0363419,192.14,192.11,5.2049]
[1739371686973,7.15832296,192.13,191.99,25.56398025]
[1739371687276,7.15832296,192.13,191.92,21.17740945]
[1739371687277,2.08168074,192.12,192.02,25.56398025]
[1739371687476,2.08168074,192.13,192.03,1.6152]
[1739371687673,0.03451081,192.09,192.03,1.6152]
[1739371688674,0.03451081,192.09,192.0,3.1419]
[1739371688867,0.03451081,192.09,192.01,1.6152]
[1739371689070,0.03451081,192.09,192.02,25.56398025]
[1739371690277,0.03451081,192.09,192.02,5.2073]
[1739371690480,0.03451081,192.09,192.01,1.6152]
[1739371691378,0.03451081,192.09,192.0,1.5771]
[1739371691573,25.59849106,192.09,192.0,1.5771]
[1739371691780,5.2061,192.08,192.0,6.7851]
[1739371691977,5.2061,192.08,192.0,5.208]
[1739371692178,25.59849106,192.09,191.94,1.5204]
[1739371692376,30.66055485,192.09,191.94,1.5204]
[1739371692676,0.03459483,192.03,191.96,25.56398025]
[1739371692877,0.03459483,192.03,191.99,25.56398025]
[1739371693077,5.06206379,192.14,191.99,25.56398025]
[1739371693380,5.2048,192.13,192.05,5.2064]
[1739371693579,10.26686379,192.13,192.05,5.2064]
[1739371693782,5.2048,192.13,192.06,5.2064]
[1739371694081,5.06206379,192.15,192.02,25.56398025]
[1739371694282,0.03957363,192.11,192.08,0.03609726]
[1739371694682,0.03957363,192.11,192.1,5.2053]
[1739371695477,5.06206379,192.19,192.08,25.60007751]
[1739371695781,1.5838,192.23,192.08,25.60007751]
[1739371695782,6.64586379,192.23,192.11,25.56398025]
[1739371695986,10.26446379,192.21,192.11,25.56398025]
[1739371696182,5.06206379,192.22,192.09,1.6124]
[1739371696378,5.06206379,192.25,192.17,25.56398025]
[1739371696579,5.06206379,192.28,192.17,25.56398025]
[1739371696784,0.03516147,192.23,192.21,5.2023]
[1739371697175,4.8298,192.36,192.23,25.56398025]
[1739371697576,1.5838,192.36,192.26,25.56398025]
[1739371697782,5.05147534,192.38,192.26,25.56398025]
[1739371697981,5.05147534,192.39,192.26,25.56398025]
[1739371698283,30.61545559,192.36,192.24,1.5198]
[1739371698479,0.03957101,192.34,192.31,0.03308363]
[1739371699085,0.03957101,192.34,192.32,5.1994]
[1739371700387,0.03957101,192.34,192.31,0.03308363]
[1739371700981,46.94194994,192.44,192.31,0.03308363]
[1739371701288,41.74554994,192.47,192.31,41.74554994]
[1739371701484,41.74554994,192.47,192.34,41.74554994]
[1739371701790,5.1958,192.46,192.36,5.1983]
[1739371702181,0.03806258,192.43,192.36,5.1983]
[1739371702482,0.03806258,192.43,192.39,0.03933983]
[1739371703784,41.74554994,192.54,192.39,0.03933983]
[1739371704087,41.74554994,192.57,192.4,41.74554994]
[1739371705082,0.03484137,192.5,192.47,0.03792547]
[1739371705588,41.74554994,192.57,192.47,0.03792547]
[1739371705787,0.03404171,192.5,192.47,0.03792547]
[1739371705989,5.1936,192.54,192.47,0.03792547]
[1739371706185,0.03396681,192.5,192.44,41.74554994]
[1739371706487,0.03396681,192.5,192.49,0.03459961]
[1739371706683,0.03396681,192.5,192.47,41.74554994]
[1739371706889,46.51384994,192.69,192.48,0.0393675]
[1739371707189,5.1908,192.64,192.55,5.1931]
[1739371707384,41.74554994,192.66,192.48,43.27304994]
[1739371707586,41.74554994,192.6,192.48,6.7224]
[1739371707890,1.5774,192.59,192.48,5.1949]
[1739371708191,0.03992515,192.56,192.52,0.03721989]
[1739371708787,5.1935,192.54,192.52,0.03721989]
[1739371709281,0.03992515,192.56,192.43,41.74554994]
[1739371709788,1.6073,192.57,192.43,41.74554994]
[1739371709981,1.6036,192.58,192.46,41.74554994]
[1739371710688,0.03942098,192.54,192.5,0.03577737]
[1739371711090,0.03942098,192.54,192.52,41.74554994]
[1739371711285,1.5457,192.65,192.52,41.74554994]
[1739371711482,1.5457,192.65,192.55,41.74554994]
[1739371711891,1.5457,192.65,192.53,1.5987]
[1739371712593,0.03822735,192.61,192.57,0.03536439]
[1739371714094,0.03822735,192.61,192.6,5.1918]
[1739371714691,5.189,192.71,192.63,5.1908]
[1739371714994,5.189,192.71,192.59,41.65619411]
[1739371715187,5.1894,192.69,192.56,41.65619411]
[1739371715388,41.65619411,192.69,192.55,1.6278]
[1739371715584,41.65619411,192.72,192.55,1.6278]
[1739371715788,5.1887,192.72,192.65,5.1904]
[1739371715985,5.1887,192.72,192.65,46.84659411]
[1739371716189,3.1237,192.79,192.65,41.65619411]
[1739371716389,0.0374174,192.7,192.67,0.0332538]
[1739371716589,3.1237,192.79,192.67,0.0332538]
[1739371716795,0.03310583,192.7,192.65,41.65619411]
[1739371716993,3.1237,192.79,192.65,41.65619411]
[1739371717194,3.1237,192.79,192.69,5.1892]
[1739371717395,0.03428516,192.69,192.65,41.65619411]
[1739371717596,3.1237,192.79,192.65,41.65619411]
[1739371717798,3.1237,192.79,192.72,0.03515875]
[1739371717994,0.0329074,192.74,192.72,0.03515875]
[1739371718389,5.1891,192.71,192.65,5.1904]
[1739371718591,1.6499,192.74,192.62,41.62108062]
[1739371718793,1.6499,192.74,192.65,41.62108062]
[1739371719097,1.6499,192.74,192.68,5.1897]
[1739371719497,0.032966,192.73,192.69,0.03542915]
[1739371719999,0.032966,192.73,192.58,41.62108062]
[1739371720202,1.6499,192.74,192.58,41.62108062]
[1739371720203,5.1898,192.68,192.58,41.62108062]
[1739371720402,1.6499,192.74,192.62,5.1911]
[1739371721000,41.62108062,192.68,192.52,41.62108062]
[1739371721204,3.1629,192.67,192.66,7.895e-05]
[1739371721400,5.1915,192.62,192.49,41.62108062]
[1739371721596,5.1915,192.62,192.5,25.63074273]
[1739371721895,5.1915,192.62,192.51,1.5906]
[1739371722501,0.03518964,192.58,192.55,0.03821522]
[1739371722702,3.1629,192.67,192.57,5.1924]
[1739371722892,3.1629,192.67,192.56,25.63074273]
[1739371723094,3.1629,192.67,192.53,25.63074273]
[1739371723300,5.1908,192.64,192.57,5.1926]
[1739371723498,28.79364273,192.67,192.51,1.5906]
[1739371723907,0.03313494,192.61,192.57,0.03978325]
[1739371724098,5.22483494,192.61,192.57,0.03978325]
[1739371724404,0.03313494,192.61,192.57,0.03978325]
[1739371725802,5.1924,192.58,192.57,0.03978325]
[1739371726098,25.66387767,192.61,192.44,25.63074273]
[1739371726298,25.63074273,192.61,192.44,25.63074273]
[1739371726501,5.1937,192.54,192.49,5.1948]
[1739371727202,25.63074273,192.61,192.44,25.63074273]
[1739371727402,5.22883982,192.53,192.5,0.03285558]
[1739371727601,5.1939,192.53,192.47,5.1952]
[1739371727802,0.03853574,192.53,192.5,0.03914054]
[1739371729109,5.1943,192.51,192.5,0.03914054]
[1739371730202,5.1954,192.47,192.35,27.20554273]
[1739371730408,5.1954,192.47,192.35,28.82494273]
[1739371730608,1.5188,192.53,192.38,25.63074273]
[1739371730910,1.5188,192.53,192.41,25.63074273]
[1739371731303,0.03541633,192.49,192.45,0.03595468]
[1739371731608,5.23021633,192.49,192.45,0.03595468]
[1739371731801,0.03541633,192.49,192.45,0.03595468]
[1739371732210,5.1964,192.44,192.38,5.1978]
[1739371732411,25.66615906,192.49,192.38,5.1978]
[1739371732608,25.63074273,192.49,192.35,3.1942]
[1739371732815,5.1953,192.48,192.43,5.1963]
[1739371733113,1.5188,192.53,192.39,25.63074273]
[1739371733303,5.1948,192.5,192.44,5.196]
[1739371733509,0.03785993,192.45,192.44,5.196]
[1739371733808,5.1948,192.5,192.44,5.196]
[1739371734004,0.03960119,192.46,192.42,0.03395867]
[1739371734820,0.03960119,192.46,192.43,5.1963]
[1739371735923,5.23520119,192.46,192.42,0.03395867]
[1739371736827,0.03960119,192.46,192.42,5.23045867]
[1739371737324,0.03960119,192.46,192.42,25.6647014]
[1739371737527,0.03960119,192.46,192.43,5.1962]
[1739371737825,0.03960119,192.46,192.42,25.6647014]
[1739371738017,0.03960119,192.46,192.45,30.82664273]
[1739371738223,5.194,192.53,192.45,25.63074273]
[1739371738620,5.1941,192.52,192.47,5.1953]
[1739371738819,1.5451,192.59,192.45,25.63074273]
[1739371739023,25.63074273,192.58,192.43,1.5813]
[1739371739223,5.1945,192.51,192.45,5.1958]
[1739371739424,0.03340296,192.52,192.48,0.03474689]
[1739371739826,5.1947,192.5,192.48,0.03474689]
[1739371740120,0.03340296,192.52,192.48,0.03474689]
[1739371740426,0.03340296,192.52,192.36,27.21204273]
[1739371740625,0.03340296,192.52,192.39,25.63074273]
[1739371740923,25.63074273,192.55,192.39,25.63074273]
[1739371741118,5.1949,192.49,192.42,25.63074273]
[1739371741514,0.03486348,192.47,192.44,0.03442578]
[1739371741721,5.1945,192.51,192.46,5.1956]
[1739371741914,1.8e-07,192.47,192.45,25.63074273]
[1739371742124,5.1924,192.59,192.52,5.1938]
[1739371742322,27.17624273,192.64,192.48,25.63074273]
[1739371742723,1.5455,192.64,192.51,25.63074273]
[1739371743122,1.5455,192.64,192.46,4.6909]
[1739371743123,27.17624273,192.64,192.48,25.63074273]
[1739371743321,0.03492913,192.59,192.56,0.0368951]
[1739371744221,5.1926,192.57,192.56,0.0368951]
[1739371744418,25.63074273,192.58,192.46,1.5985]
[1739371744625,25.63074273,192.55,192.39,25.63074273]
[1739371744924,1.5182,192.54,192.39,25.63074273]
[1739371745227,5.1948,192.5,192.39,25.63074273]
[1739371745627,5.1949,192.49,192.43,0.03381561]
[1739371745827,0.03429699,192.46,192.43,0.03381561]
[1739371746031,25.63074273,192.52,192.43,0.03381561]
[1739371746222,0.03548433,192.46,192.43,0.03381561]
[1739371748924,5.1959,192.45,192.43,0.03381561]
[1739371749120,0.03548433,192.46,192.43,0.03381561]
[1739371749121,25.66622706,192.46,192.43,0.03381561]
[1739371749325,25.66622706,192.46,192.29,4.7506]
[1739371749525,25.63074273,192.42,192.29,4.7506]
[1739371749927,5.1978,192.38,192.29,4.7506]
[1739371750333,25.63074273,192.42,192.29,4.7506]
[1739371750522,0.03694679,192.35,192.32,0.03813939]
[1739371750727,25.63074273,192.39,192.29,4.7506]
[1739371750928,25.63074273,192.39,192.25,28.19490004]
[1739371751122,0.03850126,192.35,192.32,0.0333081]
[1739371752732,5.1991,192.34,192.32,0.0333081]
[1739371753132,0.03850126,192.35,192.32,0.0333081]
[1739371755425,0.03850126,192.35,192.34,5.1989]
[1739371755827,1.5505,192.47,192.33,41.75040321]
[1739371756033,1.5505,192.47,192.36,41.75040321]
[1739371756232,3.1881,192.49,192.37,1.6208]
[1739371757030,0.0347151,192.45,192.41,0.03488991]
[1739371758028,0.0347151,192.45,192.41,5.23158991]
[1739371758330,0.0347151,192.45,192.41,0.03488991]
[1739371758537,1.6269,192.55,192.42,41.75040321]
[1739371758730,1.6269,192.55,192.41,0.03488991]
[1739371758934,5.1948,192.49,192.39,41.75040321]
[1739371759335,5.1943,192.51,192.39,41.75040321]
[1739371759538,5.1943,192.51,192.42,41.75040321]
[1739371759836,5.1943,192.51,192.43,0.03671149]
[1739371759837,0.03656678,192.47,192.43,0.03671149]
[1739371761538,41.75040321,192.59,192.43,0.03671149]
[1739371761746,41.75040321,192.62,192.48,41.75040321]
[1739371762141,4.8404,192.65,192.48,41.75040321]
[1739371762142,46.59080321,192.65,192.48,41.75040321]
[1739371762342,46.59080321,192.65,192.49,1.5954]
[1739371762841,0.03342057,192.59,192.55,0.03863668]
[1739371763344,5.1924,192.58,192.55,0.03863668]
[1739371763748,0.03342057,192.59,192.55,0.03863668]
[1739371766141,0.03342057,192.59,192.55,5.23153668]
[1739371766545,0.03342057,192.59,192.55,0.03863668]
[1739371766741,5.1928,192.57,192.55,0.03863668]
[1739371767241,0.03342057,192.59,192.55,0.03863668]
[1739371768046,0.03342057,192.59,192.56,5.1929]
[1739371768245,0.03342057,192.59,192.55,0.03863668]
[1739371768547,0.03342057,192.59,192.57,5.1925]
[1739371768749,0.03342057,192.59,192.55,0.03863668]
[1739371769444,0.03342057,192.59,192.58,5.1924]
[1739371771548,3.2079,192.73,192.57,41.75040321]
[1739371771747,1.5606,192.72,192.58,25.61376236]
[1739371772346,25.61376236,192.71,192.55,28.67656236]
[1739371772746,0.03864767,192.65,192.61,0.0336045]
[1739371773750,5.1913,192.62,192.61,0.0336045]
[1739371774644,5.1922,192.59,192.55,5.1932]
[1739371775047,1.6255,192.63,192.49,25.61376236]
[1739371775546,5.1924,192.58,192.54,5.1933]
[1739371775754,0.03927366,192.58,192.54,0.03999553]
[1739371776949,0.03927366,192.58,192.54,5.23339553]
[1739371778755,0.03927366,192.58,192.54,0.03999553]
[1739371779353,5.1932,192.55,192.54,0.03999553]
[1739371779555,0.03927366,192.58,192.54,0.03999553]
[1739371780453,5.1928,192.57,192.54,0.03999553]
[1739371781053,0.03927366,192.58,192.54,0.03999553]
[1739371782459,0.03927366,192.58,192.55,25.61376236]
[1739371782657,0.03927366,192.58,192.54,0.03999553]
[1739371782858,0.03927366,192.58,192.57,5.1926]
[1739371784454,0.03927366,192.58,192.54,0.03999553]
[1739371784660,0.03927366,192.58,192.55,5.1929]
[1739371785163,0.03927366,192.58,192.56,5.1929]
[1739371785351,0.03927366,192.58,192.54,0.03999553]
[1739371785754,0.03927366,192.58,192.55,5.1929]
[1739371785962,0.03927366,192.58,192.54,0.03999553]
[1739371786359,0.03927366,192.58,192.55,5.1931]
[1739371786861,0.03927366,192.58,192.56,5.1928]
[1739371787161,0.03927366,192.58,192.54,0.03999553]
[1739371788067,0.03927366,192.58,192.55,5.1931]
[1739371789072,0.03927366,192.58,192.54,0.03999553]
[1739371789665,5.1929,192.57,192.54,0.03999553]
[1739371789862,0.03927366,192.58,192.54,0.03999553]
[1739371790569,5.193,192.56,192.54,0.03999553]
[1739371791067,5.1932,192.55,192.54,0.03999553]
[1739371791866,0.03927366,192.58,192.48,5.1949]
[1739371791867,5.194,192.52,192.48,5.1949]
[1739371792871,0.0334876,192.52,192.5,5.1944]
[1739371793367,0.0334876,192.52,192.48,0.03495053]
[1739371793670,5.2276876,192.52,192.48,5.22995053]
[1739371793869,5.2276876,192.52,192.48,0.03495053]
[1739371794270,0.0334876,192.52,192.48,0.03495053]
[1739371795368,0.0334876,192.52,192.49,5.1946]
[1739371795772,5.2274876,192.52,192.48,5.22995053]
[1739371796171,5.2274876,192.52,192.48,0.03495053]
[1739371797171,0.0334876,192.52,192.48,0.03495053]
[1739371797372,0.0334876,192.52,192.49,25.61376236]
[1739371797569,0.0334876,192.52,192.49,5.1946]
[1739371797769,0.0334876,192.52,192.48,0.03495053]
[1739371798072,0.0334876,192.52,192.49,5.1948]
[1739371798372,0.0334876,192.52,192.48,0.03495053]
[1739371798572,5.1943,192.51,192.48,0.03495053]
[1739371799473,5.1945,192.5,192.48,0.03495053]
[1739371799973,0.0334876,192.52,192.48,0.03495053]
[1739371800175,5.1948,192.49,192.48,0.03495053]
[1739371800473,0.0334876,192.52,192.37,25.61376236]
[1739371800673,0.0334876,192.52,192.35,28.19490004]
[1739371800674,25.61376236,192.5,192.35,28.19490004]
[1739371800973,5.1973,192.4,192.35,28.19490004]
[1739371801174,25.61376236,192.44,192.35,28.19490004]
[1739371801468,3.1172,192.43,192.35,28.19490004]
[1739371801673,0.0354883,192.41,192.38,0.0354646]
[1739371802173,5.2324883,192.41,192.38,0.0354646]
[1739371802565,0.0354883,192.41,192.38,5.2331646]
[1739371802765,0.0354883,192.41,192.38,0.0354646]
[1739371802973,3.1172,192.5,192.4,25.61376236]
[1739371803170,1.5695,192.5,192.37,25.61376236]
[1739371803370,1.5477,192.49,192.35,3.136]
[1739371803671,5.1973,192.4,192.34,5.1988]
[1739371803871,25.61376236,192.47,192.31,27.19706236]
[1739371804073,1.5477,192.49,192.34,25.61376236]
[1739371804272,0.03431207,192.39,192.38,5.1977]
[1739371804470,86.59452792,192.54,192.37,25.61376236]
[1739371804676,86.59452792,192.54,192.42,25.61376236]
[1739371805266,84.97222792,192.57,192.48,25.61376236]
[1739371805675,0.03387935,192.54,192.51,0.03421371]
[1739371806176,84.97222792,192.57,192.51,25.64797607]
[1739371806669,84.97222792,192.57,192.52,5.1937]
[1739371806871,84.97222792,192.57,192.51,0.03421371]
[1739371807474,5.1938,192.53,192.51,0.03421371]
[1739371807777,0.03412401,192.56,192.51,0.03421371]
[1739371808272,5.1937,192.54,192.51,0.03421371]
[1739371809076,0.03412401,192.56,192.51,0.03421371]
[1739371809077,0.03412401,192.56,192.51,25.64797607]
[1739371809472,0.03412401,192.56,192.51,0.03421371]
[1739371809681,25.64788637,192.56,192.51,0.03421371]
[1739371810173,5.194,192.52,192.51,0.03421371]
[1739371810979,25.61376236,192.53,192.36,25.61376236]
[1739371811174,25.61376236,192.47,192.34,3.1343]
[1739371811373,1.5929,192.46,192.34,1.4874]
[1739371811569,1.5929,192.46,192.31,56.64667744]
[1739371811570,25.61376236,192.44,192.31,56.64667744]
[1739371811777,25.61376236,192.44,192.32,7.01749059]
[1739371811980,5.1981,192.37,192.32,7.01749059]
[1739371812178,5.1981,192.37,192.36,0.03460174]
[1739371813178,5.1988,192.35,192.32,7.01749059]
[1739371813381,25.61376236,192.38,192.32,7.01749059]
[1739371813886,25.61376236,192.35,192.31,21.17740945]
[1739371814084,1.5404,192.34,192.31,21.17740945]
[1739371814381,5.1998,192.31,192.23,5.2017]
[1739371814686,1.5404,192.34,192.23,5.2017]
[1739371814883,25.61376236,192.32,192.21,1.613]
[1739371815283,5.2008,192.27,192.21,6.8152]
[1739371815484,5.2008,192.27,192.21,1.613]
[1739371815685,0.03686091,192.26,192.22,0.03892694]
[1739371817985,1.5404,192.34,192.28,5.2002]
[1739371818189,1.5404,192.34,192.24,25.61376236]
[1739371818590,1.5404,192.34,192.21,25.61376236]
[1739371818784,25.61376236,192.32,192.16,4.6896]
[1739371819189,0.03907946,192.26,192.22,0.03635402]
[1739371819394,5.2014,192.25,192.22,0.03635402]
[1739371819992,0.03907946,192.26,192.22,0.03635402]
[1739371820694,5.2018,192.23,192.22,0.03635402]
[1739371820995,25.65284182,192.26,192.14,5.2041]
[1739371821296,5.2029,192.2,192.14,5.2041]
[1739371821590,1.5017,192.28,192.13,41.81466531]
[1739371821797,5.2012,192.26,192.16,41.81466531]
[1739371822198,0.03912056,192.22,192.2,5.2026]
[1739371822697,0.03912056,192.22,192.19,0.03711349]
[1739371823697,41.81466531,192.35,192.19,41.8517788]
[1739371824093,41.81466531,192.29,192.19,5.2027]
[1739371824798,41.81466531,192.29,192.17,5.2032]
[1739371824989,41.84890421,192.26,192.22,0.03725775]
[1739371825193,5.2024,192.21,192.14,1.6133]
[1739371825498,41.81466531,192.23,192.22,3.168e-05]
[1739371825694,41.81466531,192.23,192.07,41.81466531]
[1739371825893,5.2043,192.15,192.09,5.2056]
[1739371826288,41.81466531,192.2,192.08,1.5838]
[1739371826795,0.03820835,192.16,192.12,0.0385134]
[1739371827193,5.2045,192.13,192.12,0.0385134]
[1739371827390,41.81466531,192.14,192.02,3.0988]
[1739371827596,5.2062,192.07,192.02,1.5838]
[1739371828294,5.2062,192.07,192.01,5.2076]
[1739371828499,5.24637102,192.06,192.03,0.03695045]
[1739371829096,0.03997102,192.06,192.03,0.03695045]
[1739371829291,5.207,192.04,192.03,0.03695045]
[1739371829600,0.03997102,192.06,192.03,0.03695045]
[1739371831691,41.81466531,192.05,191.9,41.81466531]
[1739371831893,41.81466531,192.02,191.84,46.68466531]
[1739371832501,5.209,191.97,191.84,43.44776531]
[1739371832697,41.81466531,191.99,191.84,1.6331]
[1739371832908,0.03468804,191.92,191.88,5.2112]
[1739371833202,0.03468804,191.92,191.84,1.6331]
[1739371833401,1.6244,192.03,191.87,41.81466531]
[1739371833604,1.6244,192.03,191.9,41.81466531]
[1739371833803,37.0,192.17,191.9,41.81466531]
[1739371834003,41.81466531,192.0,191.89,5.2109]
[1739371834502,5.2105,191.92,191.85,6.8437]
[1739371834701,41.81466531,191.94,191.93,3.891e-05]
[1739371835101,41.81466531,191.94,191.79,1.4908]
[1739371836100,0.03946819,191.88,191.84,5.2123]
[1739371836301,0.03946819,191.88,191.79,1.4908]
[1739371836998,0.03946819,191.88,191.84,41.81466531]
[1739371837606,0.03946819,191.88,191.81,41.81466531]
[1739371838103,0.03946819,191.88,191.84,41.81466531]
[1739371838295,5.2097,191.94,191.84,41.81466531]
[1739371838500,41.81466531,192.03,191.84,41.81466531]
[1739371838693,41.81466531,192.03,191.87,41.81466531]
[1739371838895,5.209,191.97,191.87,41.81466531]
[1739371839099,1.534,192.04,191.9,41.81466531]
[1739371839298,1.534,192.04,191.91,1.526]
[1739371839503,0.0350929,191.99,191.96,5.209]
[1739371839803,0.0350929,191.99,191.95,0.039288]
[1739371842007,5.2433929,191.99,191.95,0.039288]
[1739371842801,0.0350929,191.99,191.95,0.039288]
[1739371844002,5.2067,192.06,191.96,41.81466531]
[1739371844201,1.6472,192.1,191.95,0.039288]
[1739371844404,41.81466531,192.14,191.99,41.81466531]
[1739371844706,5.2051,192.11,192.02,41.81466531]
[1739371844909,5.2051,192.11,192.03,1.5475]
[1739371845109,41.81466531,192.14,192.03,1.5475]
[1739371845310,0.03811557,192.08,192.05,0.03803589]
[1739371845699,5.2064,192.06,192.05,0.03803589]
[1739371847710,5.2079,192.01,191.95,1.5475]
[1739371847912,41.81466531,192.04,191.94,1.5397]
[1739371848307,5.2078,192.01,191.94,1.5397]
[1739371848502,44.97506531,192.07,191.94,1.5397]
[1739371848709,41.81466531,192.04,191.94,1.5397]
[1739371848908,5.2082,192.0,191.99,0.03542733]
[1739371849812,5.24055886,192.02,191.99,0.03542733]
[1739371850011,0.03285886,192.02,191.99,0.03542733]
[1739371851114,5.2081,192.0,191.99,0.03542733]
[1739371851310,0.03285886,192.02,191.99,0.03542733]
[1739371852711,0.03285886,192.02,192.0,5.2078]
[1739371852907,0.03285886,192.02,191.99,0.03542733]
[1739371853814,5.2081,192.0,191.99,0.03542733]
[1739371854711,0.03285886,192.02,191.99,0.03542733]
[1739371855216,0.03285886,192.02,192.01,5.2078]
[1739371855716,0.03285886,192.02,191.99,0.03542733]
[1739371855916,0.03285886,192.02,191.99,5.24352733]
[1739371856520,5.2081,192.0,191.99,0.03542733]
[1739371857317,0.03285886,192.02,191.99,0.03542733]
[1739371857513,25.80282672,192.16,191.99,25.83825405]
[1739371857816,25.80282672,192.19,192.02,25.80282672]
[1739371858017,5.2045,192.14,192.02,25.80282672]
[1739371858215,5.2045,192.14,192.07,5.2061]
[1739371858609,5.204,192.16,192.05,25.80282672]
[1739371858812,0.03497191,192.12,192.09,0.03783998]
[1739371859112,1.4965,192.2,192.09,0.03783998]
[1739371859418,1.4965,192.2,192.11,5.205]
[1739371859619,41.83554244,192.25,192.08,41.83554244]
[1739371859814,43.44384244,192.25,192.08,41.83554244]
[1739371860219,0.0378684,192.18,192.14,0.03999234]
[1739371862316,5.204,192.15,192.14,0.03999234]
[1739371863019,5.2054,192.1,192.06,1.5342]
[1739371863219,41.83554244,192.13,192.01,1.6075]
[1739371863413,41.83554244,192.13,192.01,3.1417]
[1739371864113,5.2073,192.03,192.0,21.17740945]
[1739371864717,5.2437415,192.03,192.0,21.21102663]
[1739371865110,47.04334244,192.01,192.0,0.03361718]
[1739371865513,5.2078,192.01,192.0,0.03361718]
[1739371865913,5.2438415,192.03,192.0,0.03361718]
[1739371866117,0.0364415,192.03,192.0,0.03361718]
[1739371866314,41.83554244,192.01,191.88,1.5416]
[1739371866509,5.2098,191.94,191.88,1.5416]
[1739371866715,5.2098,191.94,191.87,3.1109]
[1739371866716,41.83554244,191.98,191.87,3.1109]
[1739371866918,41.83554244,191.98,191.87,1.5614]
[1739371867117,41.83554244,191.95,191.87,1.5614]
[1739371867321,5.2111,191.89,191.82,8.3038]
[1739371867710,5.2111,191.89,191.84,0.03726382]
[1739371867910,0.03740559,191.87,191.84,0.03726382]
[1739371868118,41.83554244,191.98,191.82,3.0911]
[1739371868318,0.03944878,191.87,191.84,41.87434999]
[1739371868518,3.2395,192.0,191.84,41.83554244]
[1739371869320,41.83554244,191.98,191.82,3.0911]
[1739371869621,0.03530514,191.92,191.88,0.03554294]
[1739371871120,41.87084758,191.92,191.88,0.03554294]
[1739371871627,5.211,191.89,191.88,0.03554294]
[1739371873022,5.211,191.89,191.88,4.294e-05]
[1739371873222,47.04654244,191.89,191.88,4.294e-05]
[1739371874324,47.04654244,191.89,191.74,47.05044244]
[1739371874325,5.2138,191.79,191.74,5.2149]
[1739371874517,41.83554244,191.83,191.68,41.83554244]
[1739371874722,5.2144,191.77,191.72,5.2156]
[1739371874921,41.83554244,191.83,191.65,63.01295189]
[1739371875319,3.2192,191.88,191.72,0.03886572]
[1739371875320,0.03823362,191.76,191.72,0.03886572]
[1739371875525,3.2192,191.88,191.74,41.83554244]
[1739371875829,41.83554244,191.92,191.77,41.83554244]
[1739371876032,41.83554244,191.86,191.75,1.504]
[1739371876527,5.2132,191.81,191.75,6.7187]